bitfinex-derivatives/quotes_ETHF0:USTF0_20240904
["timestamp","ask_amount","ask_price","bid_price","bid_amount"]
[1725427385554,3.33084,2376.5,2376.4,1.75706]
[1725427386161,3.33084,2376.5,2376.4,1.3362]
[1725427386865,2.91,2376.5,2376.4,1.75706]
[1725427387060,0.00631406,2376.6,2376.5,0.42084]
[1725427387667,0.42714406,2376.6,2376.4,1.75705]
[1725427388359,3.33714406,2376.6,2376.4,1.75705]
[1725427388967,0.42084,2376.5,2376.4,1.75705]
[1725427389362,3.33715406,2376.6,2376.4,1.75705]
[1725427390069,1.21,2376.5,2376.4,1.75705]
[1725427390768,0.42715406,2376.6,2376.5,0.42084]
[1725427391064,1.21631406,2376.6,2376.5,0.42084]
[1725427392068,1.63714406,2376.6,2376.5,0.42084]
[1725427395565,0.42084,2376.5,2376.4,1.75705]
[1725427396163,0.42084,2376.5,2376.4,1.3362]
[1725427398365,0.42084,2376.5,2376.4,1.75706]
[1725427400572,1.21631406,2376.6,2376.4,1.75706]
[1725427400870,0.42084,2376.5,2376.4,1.75706]
[1725427402475,0.42084,2376.5,2376.4,1.3362]
[1725427402869,0.42084,2376.5,2376.4,1.75706]
[1725427403065,0.42084,2376.5,2376.1,0.4209]
[1725427403066,1.05212,2376.5,2376.1,0.4209]
[1725427403273,0.42089,2376.3,2376.2,0.6916]
[1725427403672,1.11679,2376.3,2376.2,1.1125]
[1725427404675,1.11678,2376.3,2376.2,1.1125]
[1725427404871,4.83868,2376.4,2376.2,1.1125]
[1725427405070,3.62868,2376.4,2376.3,0.42088]
[1725427405275,3.2078,2376.4,2376.3,0.42088]
[1725427407471,3.2078,2376.4,2376.3,4.62888]
[1725427407677,3.2078,2376.4,2376.3,0.42088]
[1725427407880,3.2078,2376.4,2376.3,4.62888]
[1725427408984,3.2078,2376.4,2376.3,0.42088]
[1725427411278,0.00631406,2376.6,2376.5,1.47296]
[1725427411582,0.00631406,2376.6,2376.5,2.68296]
[1725427411878,0.098,2377.0,2376.9,0.42077]
[1725427412085,0.098,2377.3,2377.2,0.42072]
[1725427412288,3.2078,2377.3,2377.2,0.42072]
[1725427417677,3.2078,2377.3,2377.2,4.62712]
[1725427418775,0.00631406,2377.5,2377.4,0.42069]
[1725427419274,4.63561,2377.9,2377.7,0.42062]
[1725427419579,4.53761,2377.9,2377.7,0.42062]
[1725427419784,4.117,2377.9,2377.8,1.09361]
[1725427421681,0.6367,2378.0,2377.9,0.4206]
[1725427423182,0.6367,2378.0,2377.9,1.0707]
[1725427423789,6.54468406,2378.1,2377.9,1.0707]
[1725427423790,0.00631406,2378.1,2378.0,0.42058]
[1725427424778,0.00631406,2378.1,2378.0,4.62538]
[1725427428176,3.3058,2378.4,2378.3,0.42053]
[1725427428382,0.42058,2378.0,2377.9,0.6501]
[1725427428682,3.62838,2378.0,2377.9,1.07069]
[1725427428886,3.33058,2378.1,2377.9,1.0707]
[1725427429078,0.42058,2378.0,2377.9,1.0707]
[1725427429278,3.33057,2378.1,2377.9,1.0707]
[1725427429679,0.42057,2378.1,2377.9,1.0707]
[1725427430887,0.42057,2378.1,2377.9,0.4206]
[1725427431091,0.4206,2377.9,2377.8,0.673]
[1725427431988,1.0823,2377.9,2377.8,0.673]
[1725427432191,1.0823,2377.9,2377.7,1.08783]
[1725427433485,1.08231,2377.9,2377.7,1.08783]
[1725427434097,0.42061,2377.8,2377.7,0.6672]
[1725427434287,0.42061,2377.8,2377.7,1.08783]
[1725427434591,0.42061,2377.8,2377.7,0.6672]
[1725427434888,1.08231,2377.9,2377.7,1.08783]
[1725427435096,0.6617,2377.9,2377.8,0.42061]
[1725427435594,0.6617,2377.9,2377.8,1.07451]
[1725427435792,0.6617,2377.9,2377.7,0.6672]
[1725427436895,1.08231,2377.9,2377.7,1.08783]
[1725427437195,0.42061,2377.8,2377.7,0.6672]
[1725427437383,1.08231,2377.9,2377.7,1.08783]
[1725427438493,0.42065,2377.6,2377.5,0.6539]
[1725427438693,0.42065,2377.6,2376.2,2.27982744]
[1725427438694,0.42074,2377.1,2377.0,0.00631406]
[1725427438991,3.2078,2377.1,2377.0,0.00631406]
[1725427439198,1.5682,2377.5,2377.0,10.21351406]
[1725427439199,0.6563,2377.5,2377.0,10.21351406]
[1725427439396,0.098,2377.6,2377.1,0.6497]
[1725427439593,3.2078,2377.7,2377.1,0.6497]
[1725427439594,3.8836,2377.7,2377.2,0.6611]
[1725427439898,7.21424,2377.7,2377.3,0.6934]
[1725427440099,0.42066,2377.6,2377.3,0.6934]
[1725427440798,0.42067,2377.5,2377.3,0.6934]
[1725427441299,0.42067,2377.5,2377.1,0.6497]
[1725427441501,0.4207,2377.3,2377.0,0.00631406]
[1725427441800,3.2078,2377.1,2377.0,0.00631406]
[1725427442205,7.83574,2377.1,2377.0,0.00631406]
[1725427442795,7.415,2377.1,2377.0,0.00631406]
[1725427443000,7.83574,2377.1,2377.0,0.00631406]
[1725427448304,10.74574,2377.1,2376.5,0.6962]
[1725427448600,2.91,2376.6,2376.3,1.2991]
[1725427448902,0.42086,2376.4,2376.3,1.2991]
[1725427450098,4.30215,2376.5,2376.3,1.2991]
[1725427450898,3.2078,2376.5,2376.3,1.2991]
[1725427451696,3.62865,2376.5,2376.3,1.2991]
[1725427452609,0.42086,2376.4,2376.3,1.2991]
[1725427455108,3.9174,2376.5,2376.3,1.2991]
[1725427455109,4.33826,2376.5,2376.3,1.2991]
[1725427456006,3.62866,2376.5,2376.3,1.2991]
[1725427456305,3.62865,2376.5,2376.3,1.2991]
[1725427456512,3.62865,2376.5,2376.3,1.71998]
[1725427456513,3.2078,2376.5,2376.3,1.71998]
[1725427457109,3.2078,2376.5,2376.3,1.2991]
[1725427457309,3.2078,2376.5,2376.3,1.71998]
[1725427458709,3.2078,2376.5,2376.3,1.2991]
[1725427458904,0.00631406,2376.6,2376.3,1.2991]
[1725427459204,0.42715406,2376.6,2376.3,1.71997]
[1725427459509,0.00631406,2376.6,2376.4,4.208]
[1725427459712,0.098,2377.0,2376.9,0.42077]
[1725427459905,3.2078,2377.3,2376.8,3.8963]
[1725427460208,0.42073,2377.2,2376.9,1.13457]
[1725427460611,0.42073,2377.2,2377.0,0.42076]
[1725427460914,0.42073,2377.2,2376.9,1.13456]
[1725427461512,0.42073,2377.2,2377.0,0.42076]
[1725427461713,3.63483406,2377.3,2377.0,0.42076]
[1725427462510,3.63483406,2377.3,2376.9,0.7138]
[1725427462511,3.21411406,2377.3,2377.1,0.42073]
[1725427463009,3.63481406,2377.3,2377.0,1.07175]
[1725427463406,3.63482406,2377.3,2377.1,0.42074]
[1725427463612,3.63482406,2377.3,2377.0,0.651]
[1725427463613,3.63482406,2377.3,2377.0,1.07174]
[1725427463914,0.42072,2377.2,2377.0,1.07174]
[1725427464118,3.21411406,2377.3,2377.1,0.42074]
[1725427464119,3.63482406,2377.3,2377.1,0.42074]
[1725427464416,3.63482406,2377.3,2377.0,1.07174]
[1725427465322,0.42072,2377.2,2377.0,1.07174]
[1725427466909,0.42072,2377.2,2377.0,0.651]
[1725427467109,0.00631406,2377.3,2377.0,0.651]
[1725427467409,0.42074,2377.2,2377.0,1.07175]
[1725427467613,0.42074,2377.2,2377.0,0.651]
[1725427467918,0.42074,2377.2,2377.0,1.07175]
[1725427468413,0.42703406,2377.3,2377.0,1.07175]
[1725427469322,0.42073,2377.2,2377.0,1.07175]
[1725427469617,0.42076,2377.0,2376.9,0.7138]
[1725427469810,0.42076,2377.0,2376.9,1.3975]
[1725427470624,0.42076,2377.0,2376.1,0.00631406]
[1725427470625,1.05194,2376.9,2376.1,0.00631406]
[1725427470914,1.05194,2376.9,2376.4,0.6533]
[1725427470915,3.62864,2376.6,2376.4,0.6533]
[1725427471323,3.2078,2376.6,2376.4,0.6533]
[1725427471723,7.21418,2376.9,2376.4,1.07415]
[1725427471919,3.2078,2376.6,2376.4,0.6533]
[1725427474319,4.48364335,2376.9,2376.5,0.42083]
[1725427474635,4.48364335,2376.9,2376.5,0.42084]
[1725427474930,4.30418,2376.9,2376.6,0.6478]
[1725427475431,3.8834,2376.9,2376.6,0.6478]
[1725427475626,4.30417,2376.9,2376.7,0.6601]
[1725427475930,3.2078,2376.9,2376.7,1.08091]
[1725427477246,3.2078,2376.9,2376.8,0.42079]
[1725427477445,0.42073,2377.2,2376.8,7.83579]
[1725427477733,0.63614657,2377.3,2377.0,0.42075]
[1725427477940,0.63614657,2377.3,2377.1,0.7077]
[1725427478133,0.42702406,2377.3,2377.2,0.7021]
[1725427478333,0.00631406,2377.3,2377.2,0.7021]
[1725427480439,0.42701406,2377.3,2377.2,0.7021]
[1725427480641,0.00631406,2377.3,2377.2,0.7021]
[1725427481133,0.42701406,2377.3,2377.2,0.7021]
[1725427481333,0.00631406,2377.3,2377.2,0.7021]
[1725427482141,0.42701406,2377.3,2377.2,0.7021]
[1725427482343,0.00631406,2377.3,2377.2,1.12282]
[1725427484338,0.00631406,2377.3,2377.2,6.38103]
[1725427484846,0.00631406,2377.3,2377.2,12.38103]
[1725427485048,3.3058,2377.7,2377.6,0.42065]
[1725427485358,0.42062,2377.8,2377.6,0.42065]
[1725427485540,0.42062,2377.8,2377.7,0.42063]
[1725427485841,0.42062,2377.8,2377.2,1.75391]
[1725427486038,0.00417781,2377.7,2377.6,0.42064]
[1725427488743,0.00417781,2377.7,2377.6,1.07014]
[1725427493247,0.00417781,2377.7,2377.6,2.12177]
[1725427498454,0.00417781,2377.7,2377.6,6.32737]
[1725427500246,0.00417781,2377.7,2377.6,13.379]
[1725427500454,1e-08,2377.7,2377.6,13.379]
[1725427500855,0.098,2378.2,2378.1,1.47197]
[1725427501152,0.42047,2378.7,2378.1,1.47197]
[1725427501153,0.098,2378.7,2378.6,0.42047]
[1725427501355,3.9064,2378.8,2378.7,0.42046]
[1725427501550,3.5409,2379.1,2379.0,0.4204]
[1725427501753,4.117,2379.4,2378.8,4.64698]
[1725427501955,0.42036,2379.3,2379.1,0.42037]
[1725427502458,0.75346,2379.3,2379.1,0.42037]
[1725427502858,3.2078,2379.4,2379.2,0.42037]
[1725427503451,3.62814,2379.4,2379.2,0.42037]
[1725427503657,3.2078,2379.4,2379.2,0.42037]
[1725427503852,3.2078,2379.4,2378.9,0.6939]
[1725427504250,3.2078,2379.4,2378.9,3.9017]
[1725427504454,3.2078,2379.4,2379.2,0.42035]
[1725427504756,1.11892,2379.5,2379.2,0.42035]
[1725427505351,0.42033,2379.4,2379.1,0.42038]
[1725427505553,0.42035,2379.3,2379.1,0.42038]
[1725427505757,0.42034,2379.4,2379.1,0.42038]
[1725427507059,3.9064,2379.5,2379.0,0.42039]
[1725427507060,0.42035,2379.3,2379.0,0.42039]
[1725427507264,0.42035,2379.3,2379.1,0.42039]
[1725427507566,0.42035,2379.3,2379.0,0.42039]
[1725427508164,0.42035,2379.3,2379.1,0.42039]
[1725427508469,0.42035,2379.3,2379.0,0.42039]
[1725427509165,0.42035,2379.3,2379.1,0.42039]
[1725427510963,0.42035,2379.3,2379.0,0.42039]
[1725427511265,0.42035,2379.3,2379.1,0.42038]
[1725427511858,0.42036,2379.3,2379.1,0.42038]
[1725427512063,0.42036,2379.3,2379.0,0.42039]
[1725427512264,0.42036,2379.3,2378.9,0.6939]
[1725427512265,0.42037,2379.2,2378.9,1.11431]
[1725427512574,1.05084,2379.4,2378.9,1.11431]
[1725427512955,0.42038,2379.2,2378.9,1.11431]
[1725427514161,0.42039,2379.1,2378.9,1.11431]
[1725427516166,0.42038,2379.2,2379.0,0.4204]
[1725427516660,0.42036,2379.3,2379.0,0.4204]
[1725427516866,3.2078,2379.4,2379.0,0.4204]
[1725427517057,1.11892,2379.5,2379.3,0.42035]
[1725427517262,0.6986,2379.5,2379.4,0.7089]
[1725427517464,0.6986,2379.5,2379.4,1.12923]
[1725427517863,0.098,2379.9,2379.4,7.8213]
[1725427518169,1.10935,2379.9,2379.7,0.42027]
[1725427518362,1.10935,2379.9,2379.8,0.42026]
[1725427518564,1.10935,2379.9,2379.7,0.42027]
[1725427518761,1.10935,2379.9,2379.8,0.42026]
[1725427519160,0.6891,2379.9,2379.8,0.42026]
[1725427519363,1.10934,2379.9,2379.8,0.42026]
[1725427519758,0.6891,2379.9,2379.8,0.42026]
[1725427520873,0.42021,2380.1,2379.9,0.42023]
[1725427521173,1.07702,2380.1,2379.9,1.13243]
[1725427522869,1.07702,2380.1,2380.0,0.42023]
[1725427523375,1.07702,2380.1,2379.9,1.13243]
[1725427525462,0.6568,2380.1,2380.0,0.42023]
[1725427526470,1.07701,2380.1,2379.9,1.4229]
[1725427526767,1.07701,2380.1,2380.0,0.42023]
[1725427527571,0.6568,2380.1,2380.0,0.42023]
[1725427528573,1.07701,2380.1,2380.0,0.42023]
[1725427528772,1.07701,2380.1,2379.9,1.84313]
[1725427529560,0.42023,2380.0,2379.9,1.84313]
[1725427530166,0.42023,2380.0,2379.9,6.04473]
[1725427530571,0.42023,2380.0,2379.9,5.6245]
[1725427531075,0.42023,2380.0,2379.9,1.84314]
[1725427531271,1.07702,2380.1,2379.9,1.84314]
[1725427531471,0.42022,2380.1,2379.9,1.84314]
[1725427531772,0.42022,2380.1,2380.0,0.6942]
[1725427534866,0.4202,2380.2,2380.0,1.11443]
[1725427535072,0.4202,2380.2,2380.0,4.02443]
[1725427535673,1.05041,2380.4,2380.0,4.02443]
[1725427535873,0.42021,2380.2,2380.0,4.03074406]
[1725427537074,0.42021,2380.2,2380.1,0.42021]
[1725427537278,0.42018,2380.3,2380.1,0.42021]
[1725427537477,0.42017,2380.4,2380.2,0.42018]
[1725427537778,0.42017,2380.4,2380.3,1.3222]
[1725427543979,0.42017,2380.4,2380.3,2.5322]
[1725427544179,4.32455,2380.5,2380.3,2.95236]
[1725427544379,0.42016,2380.4,2380.3,2.95236]
[1725427544883,0.42011,2380.7,2380.5,0.42012]
[1725427545079,0.42011,2380.7,2380.6,1.21]
[1725427546288,0.42011,2380.7,2380.6,1.63012]
[1725427546480,0.42011,2380.7,2380.6,1.21]
[1725427547887,0.42011,2380.7,2380.6,1.63012]
[1725427548383,0.42011,2380.7,2380.6,1.21]
[1725427555102,0.42011,2380.7,2380.6,1.63012]
[1725427555285,0.42011,2380.7,2380.6,1.21]
[1725427557694,0.42012,2380.6,2380.5,0.42013]
[1725427557897,0.42012,2380.6,2380.5,1.63013]
[1725427558396,0.42012,2380.6,2380.5,1.63014]
[1725427558594,0.42012,2380.6,2380.5,1.21]
[1725427558991,0.42012,2380.6,2380.5,1.63014]
[1725427559298,0.42012,2380.6,2380.5,1.21]
[1725427560999,0.42012,2380.6,2380.5,1.63014]
[1725427561393,0.42012,2380.6,2380.5,1.21]
[1725427564198,0.42014,2380.5,2380.4,0.42015]
[1725427564401,0.42014,2380.5,2380.4,1.63015]
[1725427564700,0.42014,2380.5,2380.4,2.34235]
[1725427566201,0.42016,2380.4,2380.3,1.3222]
[1725427566400,0.42016,2380.4,2380.3,2.95237]
[1725427566702,0.42015,2380.5,2380.4,0.42016]
[1725427566902,0.42015,2380.5,2380.4,1.63016]
[1725427567408,3.873,2380.8,2380.4,1.63016]
[1725427567409,0.42013,2380.6,2380.5,0.42013]
[1725427567704,0.42011,2380.7,2380.6,0.42011]
[1725427568000,4.2931,2380.8,2380.7,0.4201]
[1725427568392,3.2078,2380.8,2380.7,1.6301]
[1725427568591,0.098,2381.1,2381.0,0.42005]
[1725427568796,0.30897161,2381.6,2381.4,0.41997]
[1725427568996,0.30897161,2381.6,2381.5,1.8747]
[1725427568997,1.29251161,2381.6,2381.5,1.8747]
[1725427569198,0.6616,2381.6,2381.5,2.29466]
[1725427569399,1.25624842,2382.0,2381.6,0.41994]
[1725427569701,0.098,2382.3,2381.9,1.21]
[1725427569909,0.41982,2382.3,2382.2,1.21]
[1725427570601,0.41982,2382.3,2382.1,0.6506]
[1725427570602,0.41984,2382.2,2382.1,0.6506]
[1725427570803,1.7101,2382.2,2381.8,1.21]
[1725427571098,3.2078,2382.0,2381.7,0.6506]
[1725427571303,3.2078,2382.0,2381.9,1.62989]
[1725427571701,3.2078,2382.0,2381.9,5.82829]
[1725427571903,3.62767,2382.0,2381.8,2.9]
[1725427572098,0.41989,2381.9,2381.8,2.9]
[1725427573198,0.41989,2381.9,2381.7,0.6506]
[1725427573508,0.41991,2381.8,2381.7,0.6506]
[1725427574104,1.46969,2381.8,2381.7,0.6506]
[1725427574310,0.41996,2381.5,2381.4,2.9]
[1725427574698,0.41995,2381.6,2381.4,2.9]
[1725427575609,0.41995,2381.6,2381.5,0.6449]
[1725427576703,4.29114,2381.7,2381.5,0.6449]
[1725427577804,3.62774,2381.7,2381.5,0.6449]
[1725427578014,0.41994,2381.7,2381.5,0.6449]
[1725427578812,0.41992,2381.8,2381.5,1.06486]
[1725427579011,0.41992,2381.8,2381.6,2.9]
[1725427579507,1.073,2381.9,2381.6,3.31993]
[1725427579698,0.41992,2381.8,2381.6,2.9]
[1725427580809,0.41992,2381.8,2381.6,3.31994]
[1725427581111,1.073,2381.9,2381.6,3.31994]
[1725427581309,0.41991,2381.8,2381.6,3.31994]
[1725427582401,1.073,2381.9,2381.6,3.31994]
[1725427582613,1.073,2381.9,2381.7,1.13523]
[1725427582909,1.073,2381.9,2381.7,1.4115]
[1725427583208,0.6531,2381.9,2381.7,1.83141]
[1725427583812,0.6531,2381.9,2381.7,1.83142]
[1725427584003,1.073,2381.9,2381.7,1.83142]
[1725427585013,0.6531,2381.9,2381.7,1.83142]
[1725427585214,1.07299,2381.9,2381.7,1.83142]
[1725427586613,3.62767,2382.1,2381.9,0.41989]
[1725427586822,3.62767,2382.1,2381.8,2.9]
[1725427586823,3.2078,2382.1,2382.0,1.11267]
[1725427587113,3.2078,2382.1,2382.0,4.01267]
[1725427587313,3.2078,2382.1,2382.0,3.5928]
[1725427587617,3.2078,2382.1,2382.0,0.6928]
[1725427587618,7.82606,2382.1,2382.0,0.6928]
[1725427590707,7.82606,2382.1,2381.7,4.3115]
[1725427590912,1.09589,2382.0,2381.8,0.6848]
[1725427591333,0.41989,2381.9,2381.8,0.6848]
[1725427591813,0.41994,2381.6,2381.5,2.9]
[1725427592113,5.24813,2381.9,2381.5,2.9]
[1725427592114,0.41993,2381.7,2381.5,2.9]
[1725427592907,0.4199,2381.9,2381.6,0.41994]
[1725427593109,0.4199,2381.9,2381.6,1.10474]
[1725427593319,0.41991,2381.8,2381.6,1.10474]
[1725427593719,0.4199,2381.9,2381.6,1.10474]
[1725427594026,0.4199,2381.9,2381.7,2.9]
[1725427594525,0.41989,2382.0,2381.7,3.31992]
[1725427594819,0.41989,2382.0,2381.8,1.10201]
[1725427594820,0.41987,2382.0,2381.8,1.10201]
[1725427595020,3.2078,2382.1,2381.9,0.6724]
[1725427595208,0.41987,2382.0,2381.9,0.6724]
[1725427595613,0.41989,2381.9,2381.8,0.6821]
[1725427596816,0.41989,2381.9,2381.7,2.9]
[1725427597723,0.41991,2381.8,2381.7,2.9]
[1725427598818,4.25747,2382.1,2381.7,2.9]
[1725427598819,0.4199,2381.9,2381.7,3.31992]
[1725427599017,0.4199,2381.9,2381.8,0.6588]
[1725427604426,0.4199,2381.9,2381.8,1.07871]
[1725427604638,0.41987,2382.0,2381.8,1.07871]
[1725427604922,0.41989,2381.9,2381.8,1.07871]
[1725427605824,4.25747,2382.1,2381.8,1.07871]
[1725427605825,0.41987,2382.0,2381.8,1.07871]
[1725427606129,4.25747,2382.1,2381.8,1.07871]
[1725427606521,0.41989,2381.9,2381.8,1.07871]
[1725427606721,0.41989,2382.0,2381.8,1.0787]
[1725427607122,0.41989,2382.0,2381.8,1.07869]
[1725427607330,0.41989,2382.0,2381.9,0.41989]
[1725427607927,0.41989,2382.0,2381.9,1.62989]
[1725427608129,0.41989,2382.0,2381.9,1.21]
[1725427608628,0.41989,2382.0,2381.9,1.62989]
[1725427608831,0.41989,2382.0,2381.9,1.21]
[1725427609827,0.41989,2382.0,2381.9,1.62989]
[1725427610721,3.2078,2382.1,2381.9,1.62989]
[1725427610920,3.62766,2382.1,2382.0,0.7023]
[1725427611328,7.82606,2382.1,2382.0,0.7023]
[1725427612235,3.62766,2382.1,2382.0,0.7023]
[1725427612433,0.41989,2381.9,2381.8,0.6588]
[1725427612640,0.41989,2382.0,2381.8,0.6588]
[1725427612826,0.41989,2381.9,2381.8,0.6588]
[1725427613027,7.4062,2382.1,2381.8,1.07871]
[1725427613234,0.41987,2382.0,2381.8,1.07871]
[1725427613634,4.61827,2382.0,2381.8,1.07871]
[1725427614027,3.62767,2382.1,2381.9,1.62989]
[1725427614337,3.62767,2382.1,2382.0,0.6638]
[1725427614836,7.82607,2382.1,2382.0,0.6638]
[1725427616133,3.62767,2382.1,2382.0,0.6638]
[1725427621545,3.62767,2382.1,2382.0,1.08367]
[1725427622447,3.62766,2382.1,2382.0,0.6638]
[1725427622645,3.62766,2382.1,2382.0,1.3521]
[1725427623846,3.62766,2382.1,2382.0,1.77197]
[1725427624036,3.2078,2382.1,2382.0,1.77197]
[1725427624237,3.62766,2382.1,2382.0,1.77197]
[1725427625439,3.2078,2382.1,2382.0,1.77197]
[1725427625644,3.2078,2382.1,2381.2,0.113]
[1725427625645,0.41992,2381.8,2381.2,0.113]
[1725427625839,1.04969,2382.0,2381.6,1.08984]
[1725427625840,0.6758,2381.7,2381.6,1.08984]
[1725427626239,3.62768,2382.0,2381.7,0.41991]
[1725427626439,4.30348,2382.0,2381.8,0.41991]
[1725427626647,4.30348,2382.0,2381.7,1.21]
[1725427626648,4.30348,2382.0,2381.7,1.62991]
[1725427626842,4.30348,2382.0,2381.8,0.41991]
[1725427627044,3.8836,2382.0,2381.8,1.62991]
[1725427627248,4.30347,2382.0,2381.9,1.4037]
[1725427627546,3.2078,2382.0,2381.9,1.82359]
[1725427629949,0.41987,2382.1,2381.9,1.82359]
[1725427630153,0.41987,2382.1,2382.0,0.6636]
[1725427635051,0.41987,2382.0,2381.9,0.6967]
[1725427635259,0.41992,2381.8,2381.7,0.41993]
[1725427635556,3.62772,2381.8,2381.6,2.38743]
[1725427635753,1.12983,2381.7,2381.6,2.38743]
[1725427636347,0.7099,2381.7,2381.6,2.38743]
[1725427636855,0.7099,2381.7,2381.2,3.2078]
[1725427636856,0.41998,2381.4,2381.2,3.2078]
[1725427637156,0.41998,2381.4,2381.2,0.7034]
[1725427637344,0.41998,2381.4,2381.3,1.63630067]
[1725427638161,0.41998,2381.4,2381.3,1.21630067]
[1725427640762,1.46994,2381.4,2381.3,0.00630067]
[1725427640951,5.66914,2381.4,2381.3,0.00630067]
[1725427641860,6.7191,2381.4,2381.3,0.00630067]
[1725427644155,5.66914,2381.4,2381.3,0.00630067]
[1725427650063,5.66914,2381.4,2381.3,0.69660067]
[1725427650474,3.2078,2381.5,2381.3,2.32659067]
[1725427650975,3.2078,2381.5,2381.4,0.41998]
[1725427652066,0.21428001,2381.6,2381.5,0.41996]
[1725427653479,0.63422001,2381.6,2381.4,1.62997]
[1725427653678,0.41994,2381.6,2381.4,1.62997]
[1725427654175,0.62629927,2381.6,2381.4,1.62997]
[1725427655973,0.62629927,2381.6,2381.5,0.41996]
[1725427656393,0.41998,2381.4,2381.3,0.69660067]
[1725427657182,0.41998,2381.4,2381.3,2.32660067]
[1725427657486,0.41998,2381.4,2381.3,1.90660067]
[1725427658581,3.41415927,2381.6,2381.3,2.32660067]
[1725427658885,3.3058,2381.9,2381.6,0.41993]
[1725427659077,0.41991,2381.8,2381.7,1.1299]
[1725427660389,3.83270172,2381.9,2381.7,1.54982]
[1725427660590,0.41991,2381.8,2381.7,1.54982]
[1725427660789,3.83270172,2381.9,2381.7,1.54982]
[1725427662184,3.2078,2381.9,2381.8,0.41991]
[1725427662390,3.62769,2381.9,2381.8,0.41991]
[1725427662592,3.2078,2381.9,2381.8,0.41991]
[1725427663295,3.62769,2381.9,2381.8,0.41991]
[1725427664191,0.41991,2381.8,2381.7,1.1299]
[1725427664398,0.41991,2381.8,2381.7,1.54983]
[1725427664590,0.41991,2381.8,2381.7,1.1299]
[1725427665495,0.41991,2381.8,2381.7,1.54983]
[1725427665887,0.41991,2381.8,2381.7,1.1299]
[1725427666296,3.62771,2381.8,2381.7,1.1299]
[1725427666596,3.62771,2381.8,2381.7,0.7559]
[1725427671491,3.62771,2381.8,2381.7,1.17583]
[1725427671694,3.62771,2381.8,2381.7,0.7559]
[1725427674301,3.62771,2381.8,2381.3,0.00630067]
[1725427674302,1.46994,2381.4,2381.3,0.00630067]
[1725427674501,4.67774,2381.4,2381.3,0.00630067]
[1725427674803,10.08694,2381.4,2381.3,0.00630067]
[1725427675197,11.1369,2381.4,2381.3,0.00630067]
[1725427675699,10.08694,2381.4,2381.3,0.00630067]
[1725427676302,11.1369,2381.4,2381.3,0.00630067]
[1725427676603,1.47005,2381.2,2381.1,0.3582]
[1725427677003,5.67005,2381.2,2381.1,0.3582]
[1725427678303,8.87785,2381.2,2381.1,0.3582]
[1725427678498,10.08785,2381.2,2381.1,0.3582]
[1725427680006,10.26859841,2381.2,2381.1,0.3582]
[1725427681201,6.06859841,2381.2,2381.1,0.3582]
[1725427684112,2.86079841,2381.2,2381.1,0.3582]
[1725427684313,6.06859841,2381.2,2381.1,0.3582]
[1725427686309,10.26859841,2381.2,2381.1,0.3582]
[1725427687013,3.62781,2381.2,2381.1,0.3582]
[1725427689703,0.42001,2381.2,2381.1,0.3582]
[1725427689904,3.62781,2381.2,2381.1,0.3582]
[1725427690514,0.42005,2381.0,2380.9,0.00630067]
[1725427692106,6.88018,2381.0,2380.9,0.00630067]
[1725427694919,7.93031,2381.0,2380.9,0.00630067]
[1725427695118,7.93031,2381.0,2380.5,1.2393]
[1725427695119,0.42012,2380.6,2380.5,1.2393]
[1725427695419,0.42012,2380.6,2380.5,1.1413]
[1725427695420,3.62792,2380.6,2380.5,1.1413]
[1725427695622,4.67823,2380.6,2380.5,0.773]
[1725427695818,9.26563,2380.6,2380.5,0.773]
[1725427696115,9.26563,2380.6,2380.5,0.3857]
[1725427696716,10.49198371,2380.6,2380.5,0.3857]
[1725427697015,1.47056,2380.4,2380.3,0.00630067]
[1725427697215,2.68056,2380.4,2380.3,0.00630067]
[1725427698117,6.88136,2380.4,2380.3,0.00630067]
[1725427698516,6.88136,2380.4,2380.0,0.7531]
[1725427698517,0.42021,2380.1,2380.0,0.7531]
[1725427698718,1.63021,2380.1,2380.0,0.3904]
[1725427699024,10.09014,2380.1,2380.0,0.3904]
[1725427699624,3.62801,2380.1,2380.0,0.3904]
[1725427702925,7.82961,2380.1,2380.0,0.3904]
[1725427703119,3.62801,2380.1,2380.0,0.3904]
[1725427705726,4.83801,2380.1,2380.0,0.3904]
[1725427706027,5.88854,2380.1,2380.0,0.3904]
[1725427709522,2.68074,2380.1,2380.0,0.3904]
[1725427709721,5.88854,2380.1,2380.0,0.3904]
[1725427710722,2.52137,2380.0,2379.8,0.00630067]
[1725427710931,2.68086,2379.9,2379.8,0.00630067]
[1725427711430,6.88246,2379.9,2379.8,0.00630067]
[1725427711819,2.68086,2379.9,2379.8,0.00630067]
[1725427712025,0.42024,2379.9,2379.8,0.00630067]
[1725427716028,0.42024,2379.9,2379.8,0.39630067]
[1725427719329,3.2078,2380.1,2379.8,11.80790067]
[1725427719529,0.00630067,2380.2,2380.1,0.42021]
[1725427720132,0.00630067,2380.2,2380.1,5.36761]
[1725427720733,3.2078,2380.4,2380.3,0.42017]
[1725427720933,4.32337188,2380.8,2380.5,0.42013]
[1725427720934,0.42012,2380.6,2380.5,0.42013]
[1725427721329,3.2078,2380.8,2380.5,0.42013]
[1725427721330,0.42011,2380.7,2380.5,0.42013]
[1725427721521,0.42011,2380.7,2380.6,0.3851]
[1725427721726,0.42011,2380.7,2380.6,0.80522]
[1725427722537,3.6279,2380.8,2380.6,0.80521]
[1725427723133,1.68127503,2380.7,2380.6,0.3851]
[1725427723338,1.68127503,2380.7,2380.1,0.4202]
[1725427723339,1.05037,2380.5,2380.1,0.4202]